fUST/lending_fUST_20250822
["ID","MTS","AMOUNT","RATE_DAILY","PERIOD"]
[380730246,1755852639201,-500.0,0.00020973,2]
[380730248,1755852639212,-500.0,0.00020973,2]
[380730250,1755852639221,-501.63845286,0.00020973,2]
[380730252,1755852639231,-452.67678254,0.00020973,2]
[380730254,1755852639240,-500.92331875,0.00020973,2]
[380730256,1755852639250,-259.30432088,0.00020973,2]
[380730258,1755852639260,-501.02341132,0.00020973,2]
[380730260,1755852639270,-500.0,0.00020973,2]
[380730262,1755852639279,-500.0,0.00020973,2]
[380730264,1755852639288,-500.0,0.00020973,2]
[380730266,1755852639299,-500.0,0.00020973,2]
[380730268,1755852639308,-500.0,0.00020973,2]
[380730270,1755852639318,-339.69847389,0.00020973,2]
[380730272,1755852639327,-500.0,0.00020973,2]
[380730274,1755852639337,-500.63169152,0.00020973,2]
[380730276,1755852639347,-500.43555431,0.00020973,2]
[380730278,1755852639357,-500.63181945,0.00020973,2]
[380730280,1755852639368,-500.0,0.00020973,2]
[380730282,1755852639381,-500.22435781,0.00020973,2]
[380730284,1755852639391,-501.41801088,0.00020973,2]
[380730286,1755852639400,-500.5549543,0.00020973,2]
[380730288,1755852639411,-500.0,0.00020973,2]
[380730290,1755852639421,-500.97657342,0.00020973,2]
[380730292,1755852639431,-500.23816258,0.00020973,2]
[380730294,1755852639441,-500.0,0.00020973,2]
[380730296,1755852639452,-500.0,0.00020973,2]
[380730298,1755852639463,-500.0,0.00020973,2]
[380730300,1755852639473,-500.0,0.00020973,2]
[380730302,1755852639482,-500.0,0.00020973,2]
[380730304,1755852639491,-500.0,0.00020973,2]
[380730306,1755852639501,-500.0,0.00020973,2]
[380730308,1755852639511,-158.34489102,0.00020973,2]
[380730310,1755852639520,-181.5589832,0.00020973,2]
[380730312,1755852639530,-500.0,0.00020973,2]
[380730314,1755852639540,-517.46203135,0.00020973,2]
[380730316,1755852639550,-500.70727727,0.00020973,2]
[380730318,1755852639559,-179.33548377,0.00020987,2]
[380730320,1755852639569,-500.70966073,0.00021,2]
[380730322,1755852639579,-500.0,0.00021,2]
[380730324,1755852639588,-520.92936452,0.00021,2]
[380730326,1755852639598,-500.0,0.00021,2]
[380730328,1755852639608,-160.0,0.00021007,2]
[380730330,1755852639617,-1494.5245185,0.0002101,2]
[380730332,1755852639627,-500.0,0.00021247,2]
[380730334,1755852639636,-500.0,0.00021521,2]
[380730336,1755852639646,-1000.0,0.00021521,2]
[380730338,1755852639656,-501.69540438,0.00021521,2]
[380730340,1755852639666,-501.15952311,0.00021521,2]
[380730342,1755852639676,-500.0,0.00021521,2]
[380730344,1755852639687,-1000.0,0.00021521,2]
[380730346,1755852639696,-1000.0,0.00021521,2]
[380730348,1755852639707,-1000.0,0.00021548,2]
[380730350,1755852639716,-500.0,0.00021795,2]
[380730352,1755852639727,-1415.69490132,0.00021808,2]
[380730354,1755852639736,-2542.23,0.00021917,2]
[380730355,1755852639746,-151.0,0.00022068,7]
[380730356,1755852639756,-1466.33338251,0.00022068,2]
[380730357,1755852639765,-500.0,0.00022068,2]
[380730358,1755852639775,-1500.0,0.00022096,2]
[380730359,1755852639785,-151.0,0.00022096,7]
[380730360,1755852639794,-151.0,0.00022096,7]
[380730361,1755852639804,-151.0,0.00022096,7]
[380730362,1755852639814,-151.0,0.00022096,7]
[380730363,1755852639825,-151.0,0.00022096,7]
[380730364,1755852639835,-151.0,0.00022096,7]
[380730365,1755852639845,-188.160784,0.00022096,7]
[380730366,1755852639855,-188.160784,0.00022096,7]
[380730367,1755852639866,-188.160784,0.00022096,7]
[380730368,1755852639877,-188.160784,0.00022096,7]
[380730369,1755852639888,-151.0,0.00022096,7]
[380730370,1755852639899,-277.3,0.000221,7]
[380730371,1755852639910,-190.46,0.000221,2]
[380730372,1755852639920,-1494.5245185,0.0002212,2]
[380730373,1755852639931,-160.0,0.00022567,2]
[380730374,1755852639941,-500.0,0.00022644,2]
[380730375,1755852639952,-151.0,0.00022742,7]
[380730376,1755852639964,-151.0,0.00022742,7]
[380730377,1755852639973,-159.207616,0.00022742,7]
[380730378,1755852639983,-151.0,0.00022742,7]
[380730379,1755852639996,-151.0,0.00022742,7]
[380730380,1755852640006,-257.145626,0.00022742,7]
[380730381,1755852640017,-151.0,0.00022742,7]
[380730382,1755852640028,-151.0,0.00022742,7]
[380730383,1755852640038,-151.0,0.00022742,7]
[380730384,1755852640049,-254.863003,0.00022742,7]
[380730385,1755852640060,-254.863003,0.00022742,7]
[380730387,1755852640071,-254.863003,0.00022742,7]
[380730388,1755852640081,-254.863003,0.00022742,7]
[380730389,1755852640091,-151.0,0.00022742,7]
[380730390,1755852640101,-151.0,0.00022742,7]
[380730391,1755852640111,-151.0,0.00022742,7]
[380730392,1755852640122,-151.0,0.00022742,7]
[380730393,1755852640132,-1415.69490132,0.00022742,2]
[380730394,1755852640143,-420.0,0.00022743,2]
[380730395,1755852640153,-420.0,0.00022743,2]
[380730396,1755852640163,-300.0,0.00022743,2]
[380730397,1755852640173,-420.0,0.00022743,2]
[380730398,1755852640184,-420.0,0.00022743,2]
[380730399,1755852640194,-151.0,0.00022745,7]
[380730400,1755852640205,-151.0,0.00022745,7]
[380730401,1755852640217,-151.0,0.00022745,7]
[380730402,1755852640228,-151.0,0.00022745,7]
[380730403,1755852640238,-151.0,0.00022745,7]
[380730404,1755852640248,-151.0,0.00022745,7]
[380730405,1755852640258,-151.0,0.00022745,7]
[380730406,1755852640268,-151.0,0.00022745,7]
[380730407,1755852640279,-151.0,0.00022745,7]
[380730409,1755852640289,-1680.0,0.0002285,2]
[380730411,1755852640299,-260.0,0.00023115,2]
[380730413,1755852640310,-581.0,0.00023219,3]
[380730416,1755852640321,-1494.5245185,0.00023229,2]
[380730418,1755852640331,-500.0,0.00023582,2]
[380730420,1755852640341,-500.0,0.00023582,2]
[380730422,1755852640352,-543.39422978,0.00023582,2]
[380730424,1755852640363,-500.0,0.00023582,2]
[380730426,1755852640378,-500.0,0.00023582,2]
[380730428,1755852640388,-500.0,0.00023582,2]
[380730430,1755852640398,-178.04334676,0.00023582,2]
[380730432,1755852640407,-500.0,0.00023582,2]
[380730434,1755852640418,-500.0,0.00023582,2]
[380730435,1755852640428,-500.0,0.00023582,2]
[380730436,1755852640437,-500.0,0.00023582,2]
[380730438,1755852640448,-500.0,0.00023582,2]
[380730440,1755852640458,-500.0,0.00023582,2]
[380730442,1755852640467,-500.0,0.00023582,2]
[380730444,1755852640476,-500.0,0.00023582,2]
[380730446,1755852640486,-500.0,0.00023582,2]
[380730448,1755852640496,-500.0,0.00023582,2]
[380730450,1755852640505,-500.0,0.00023582,2]
[380730452,1755852640515,-500.0,0.00023582,2]
[380730454,1755852640525,-500.0,0.00023582,2]
[380730456,1755852640535,-461.85893494,0.00023582,2]
[380730458,1755852640546,-469.36694975,0.00023582,2]
[380730459,1755852640556,-500.0,0.00023582,2]
[380730460,1755852640566,-500.0,0.00023582,2]
[380730461,1755852640575,-500.0,0.00023582,2]
[380730463,1755852640585,-500.0,0.00023582,2]
[380730465,1755852640595,-389.92183283,0.00023582,2]
[380730467,1755852640604,-500.0,0.00023582,2]
[380730468,1755852640613,-500.0,0.00023582,2]
[380730469,1755852640623,-584.65256741,0.00023582,2]
[380730470,1755852640632,-500.0,0.00023582,2]
[380730471,1755852640642,-265.0,0.00023582,2]
[380730472,1755852640651,-500.0,0.00023582,2]
[380730473,1755852640660,-500.0,0.00023582,2]
[380730474,1755852640671,-500.0,0.00023582,2]
[380730475,1755852640680,-500.0,0.00023582,2]
[380730476,1755852640690,-500.0,0.00023582,2]
[380730477,1755852640700,-500.0,0.00023582,2]
[380730478,1755852640711,-500.0,0.00023582,2]
[380730479,1755852640722,-500.0,0.00023582,2]
[380730480,1755852640731,-500.0,0.00023582,2]
[380730481,1755852640742,-500.0,0.00023582,2]
[380730482,1755852640751,-500.0,0.00023582,2]
[380730483,1755852640761,-500.0,0.00023582,2]
[380730484,1755852640771,-500.0,0.00023582,2]
[380730485,1755852640781,-500.0,0.00023582,2]
[380730487,1755852640886,-500.0,0.00023582,2]
[380730489,1755852640896,-500.0,0.00023582,2]
[380730491,1755852640906,-500.0,0.00023582,2]
[380730493,1755852640915,-500.0,0.00023582,2]
[380730495,1755852640924,-423.79663582,0.00023582,2]
[380730497,1755852640934,-500.0,0.00023582,2]
[380730499,1755852640944,-500.0,0.00023582,2]
[380730501,1755852640953,-500.0,0.00023582,2]
[380730503,1755852640963,-500.0,0.00023582,2]
[380730505,1755852640976,-500.0,0.00023582,2]
[380730507,1755852640986,-151.0,0.00023583,2]
[380730509,1755852640995,-19187.29552238,0.00023583,2]
[380730511,1755852641006,-360.0,0.00023663,2]
[380730513,1755852641015,-1415.69490132,0.00023677,2]
[380730515,1755852641024,-2542.23,0.00024109,4]
[380730517,1755852641034,-327.56113423,0.00024131,2]
[380730519,1755852641043,-460.0,0.00024211,2]
[380730520,1755852641053,-233.68964,0.00024339,7]
[380730521,1755852641062,-233.68964,0.00024339,7]
[380730523,1755852641071,-233.68964,0.00024339,7]
[380730525,1755852641082,-233.68964,0.00024339,7]
[380730527,1755852641091,-151.907688,0.00024339,7]
[380730529,1755852641101,-487.752808,0.00024339,7]
[380730531,1755852641110,-487.752808,0.00024339,7]
[380730533,1755852641120,-487.752808,0.00024339,7]
[380730535,1755852641129,-611.502105,0.00024339,7]
[380730537,1755852641139,-155.184354,0.00024339,7]
[380730539,1755852641148,-487.752808,0.00024339,7]
[380730541,1755852641158,-611.502105,0.00024339,7]
[380730543,1755852641167,-611.502105,0.00024339,7]
[380730545,1755852641177,-611.502105,0.00024339,7]
[380730546,1755852641187,-152.93944,0.00024339,7]
[380730548,1755852641196,-153.419537,0.00024339,7]
[380730550,1755852641205,-151.0,0.00024339,7]
[380730552,1755852641216,-151.0,0.00024339,7]
[380730554,1755852641225,-152.334563,0.00024339,7]
[380730556,1755852641234,-151.0,0.00024339,7]
[380730558,1755852641244,-1494.5245185,0.00024339,2]
[380730560,1755852641253,-2833.69120912,0.00024396,2]
[380730562,1755852641263,-151.530056,0.00024399,7]
[380730564,1755852641272,-7098.60727505,0.00024399,2]
[380730566,1755852641282,-155.604161,0.00024399,7]
[380730568,1755852641292,-151.0,0.00024472,7]
[380730570,1755852641302,-151.0,0.00024472,7]
[380730572,1755852641311,-151.0,0.00024472,7]
[380730574,1755852641321,-151.0,0.00024472,7]
[380730576,1755852641332,-151.0,0.00024472,7]
[380730578,1755852641341,-151.0,0.00024472,7]
[380730580,1755852641350,-301.697199,0.00024472,7]
[380730582,1755852641359,-254.863003,0.00024472,7]
[380730584,1755852641370,-254.863003,0.00024472,7]
[380730586,1755852641381,-254.863003,0.00024472,7]
[380730588,1755852641391,-254.863003,0.00024472,7]
[380730590,1755852641399,-151.0,0.00024472,7]
[380730592,1755852641409,-151.0,0.00024472,7]
[380730594,1755852641419,-151.0,0.00024472,7]
[380730596,1755852641429,-159.157794,0.00024472,7]
[380730598,1755852641438,-151.0,0.00024472,7]
[380730600,1755852641449,-151.0,0.00024472,7]
[380730602,1755852641458,-151.0,0.00024472,7]
[380730604,1755852641467,-151.0,0.00024472,7]
[380730606,1755852641477,-151.0,0.00024472,7]
[380730608,1755852641486,-151.0,0.00024472,7]
[380730609,1755852641496,-188.160784,0.00024472,7]
[380730611,1755852641505,-188.160784,0.00024472,7]
[380730613,1755852641514,-188.160784,0.00024472,7]
[380730615,1755852641523,-188.160784,0.00024472,7]
[380730617,1755852641533,-501.59994787,0.00024473,2]
[380730619,1755852641543,-501.09200894,0.00024473,2]
[380730621,1755852641552,-500.0,0.00024473,2]
[380730623,1755852641561,-500.0,0.00024473,2]
[380730625,1755852641571,-365.60859336,0.00024473,2]
[380730626,1755852641580,-501.11028575,0.00024473,2]
[380730628,1755852641590,-501.70386145,0.00024473,2]
[380730630,1755852641599,-500.0,0.00024473,2]
[380730632,1755852641608,-500.0,0.00024473,2]
[380730634,1755852641618,-501.60331057,0.00024473,2]
[380730636,1755852641627,-394.69992198,0.00024473,2]
[380730638,1755852641637,-503.27027552,0.00024473,2]
[380730640,1755852641646,-595.91252363,0.00024473,2]
[380730642,1755852641655,-501.31030205,0.00024473,2]
[380730644,1755852641665,-500.0,0.00024473,2]
[380730646,1755852641674,-500.0,0.00024473,2]
[380730648,1755852641684,-501.9113435,0.00024473,2]
[380730650,1755852641694,-151.0,0.00024473,7]
[380730652,1755852641703,-151.0,0.00024473,7]
[380730654,1755852641714,-151.0,0.00024473,7]
[380730656,1755852641723,-151.0,0.00024473,7]
[380730658,1755852641732,-151.0,0.00024473,7]
[380730660,1755852641741,-155.475497,0.00024473,7]
[380730662,1755852641750,-188.160784,0.00024473,7]
[380730664,1755852641760,-188.160784,0.00024473,7]
[380730666,1755852641769,-188.160784,0.00024473,7]
[380730667,1755852641779,-188.160784,0.00024473,7]
[380730669,1755852641788,-151.0,0.00024473,7]
[380730671,1755852641797,-151.0,0.00024473,7]
[380730674,1755852641813,-151.0,0.00024473,7]
[380730675,1755852641822,-151.0,0.00024473,7]
[380730677,1755852641832,-151.0,0.00024473,7]
[380730679,1755852641842,-151.0,0.00024473,7]
[380730681,1755852641851,-151.0,0.00024473,7]
[380730683,1755852641862,-151.0,0.00024473,7]
[380730685,1755852641872,-487.752808,0.00024484,7]
[380730687,1755852641882,-487.752808,0.00024484,7]
[380730689,1755852641891,-487.752808,0.00024484,7]
[380730691,1755852641900,-611.502105,0.00024484,7]
[380730693,1755852641910,-487.752808,0.00024484,7]
[380730695,1755852641919,-611.502105,0.00024484,7]
[380730697,1755852641928,-611.502105,0.00024484,7]
[380730699,1755852641938,-611.502105,0.00024484,7]
[380730701,1755852641947,-151.0,0.00024484,7]
[380730703,1755852641956,-151.0,0.00024484,7]
[380730705,1755852641966,-151.0,0.00024484,7]
[380730707,1755852641976,-151.0,0.00024484,7]
[380730709,1755852641985,-151.0,0.00024484,7]
[380730711,1755852641994,-151.0,0.00024484,7]
[380730713,1755852642003,-151.0,0.00024484,7]
[380730715,1755852642012,-154.293276,0.00024484,7]
[380730717,1755852642021,-254.863003,0.00024484,7]
[380730719,1755852642031,-254.863003,0.00024484,7]
[380730721,1755852642041,-254.863003,0.00024484,7]
[380730723,1755852642051,-254.863003,0.00024484,7]
[380730725,1755852642060,-151.0,0.00024484,7]
[380730727,1755852642077,-151.0,0.00024484,7]
[380730729,1755852642093,-151.0,0.00024484,7]
[380730731,1755852642102,-157.830142,0.00024484,7]
[380730733,1755852642111,-242.833482,0.00024484,7]
[380730735,1755852642121,-151.0,0.00024484,7]
[380730737,1755852642130,-151.0,0.00024484,7]
[380730739,1755852642139,-151.0,0.00024484,7]
[380730741,1755852642149,-151.0,0.00024484,7]
[380730743,1755852642158,-151.0,0.00024484,7]
[380730745,1755852642167,-151.0,0.00024495,7]
[380730747,1755852642176,-151.0,0.00024495,7]
[380730749,1755852642186,-151.0,0.00024495,7]
[380730751,1755852642196,-151.0,0.00024495,7]
[380730753,1755852642205,-151.0,0.00024495,7]
[380730754,1755852642215,-222.786094,0.00024495,7]
[380730756,1755852642224,-265.472366,0.00024495,7]
[380730758,1755852642234,-151.0,0.00024495,7]
[380730760,1755852642243,-265.472366,0.00024495,7]
[380730762,1755852642253,-233.68964,0.00024496,7]
[380730764,1755852642262,-233.68964,0.00024496,7]
[380730766,1755852642271,-233.68964,0.00024496,7]
[380730768,1755852642280,-233.68964,0.00024496,7]
[380730770,1755852642289,-152.6708,0.00024496,7]
[380730772,1755852642300,-151.0,0.00024496,7]
[380730774,1755852642309,-151.0,0.00024496,7]
[380730776,1755852642318,-207.08738,0.00024496,7]
[380730778,1755852642328,-188.160784,0.00024496,7]
[380730780,1755852642337,-188.160784,0.00024496,7]
[380730782,1755852642346,-188.160784,0.00024496,7]
[380730784,1755852642355,-188.160784,0.00024496,7]
[380730786,1755852642365,-151.0,0.00024497,7]
[380730788,1755852642378,-151.0,0.00024497,7]
[380730790,1755852642388,-151.0,0.00024497,7]
[380730792,1755852642397,-151.0,0.00024497,7]
[380730794,1755852642407,-151.0,0.00024497,7]
[380730796,1755852642417,-151.0,0.00024497,7]
[380730798,1755852642426,-151.0,0.00024497,7]
[380730800,1755852642435,-151.0,0.00024497,7]
[380730802,1755852642445,-152.177897,0.00024497,7]
[380730804,1755852642454,-151.0,0.00024497,7]
[380730806,1755852642463,-151.0,0.00024497,7]
[380730808,1755852642472,-151.0,0.00024497,7]
[380730810,1755852642482,-151.750902,0.00024497,7]
[380730812,1755852642491,-151.0,0.00024497,7]
[380730814,1755852642501,-151.0,0.00024497,7]
[380730816,1755852642510,-151.0,0.00024497,7]
[380730818,1755852642519,-151.0,0.00024497,7]
[380730820,1755852642529,-265.472366,0.00024497,7]
[380730822,1755852642538,-151.0,0.00024497,7]
[380730824,1755852642548,-265.472366,0.00024497,7]
[380730826,1755852642558,-487.752808,0.00024497,7]
[380730828,1755852642567,-487.752808,0.00024497,7]
[380730830,1755852642577,-487.752808,0.00024497,7]
[380730832,1755852642586,-611.502105,0.00024497,7]
[380730834,1755852642596,-487.752808,0.00024497,7]
[380730836,1755852642605,-611.502105,0.00024497,7]
[380730838,1755852642615,-611.502105,0.00024497,7]
[380730840,1755852642624,-611.502105,0.00024497,7]
[380730842,1755852642634,-151.0,0.00024497,7]
[380730843,1755852642643,-151.0,0.00024497,7]
[380730845,1755852642652,-169.977418,0.00024497,7]
[380730847,1755852642662,-151.0,0.00024497,7]
[380730849,1755852642671,-151.0,0.00024497,7]
[380730851,1755852642680,-151.0,0.00024497,7]
[380730852,1755852642690,-151.0,0.00024497,7]
[380730853,1755852642699,-155.644306,0.00024497,7]
[380730854,1755852642709,-151.0,0.00024497,7]
[380730855,1755852642719,-2833.69120908,0.00024497,2]
[380730856,1755852642729,-151.0,0.00024498,7]
[380730857,1755852642738,-151.0,0.00024498,7]
[380730858,1755852642748,-151.0,0.00024498,7]
[380730859,1755852642757,-151.0,0.00024498,7]
[380730860,1755852642767,-151.0,0.00024498,7]
[380730861,1755852642776,-151.0,0.00024498,7]
[380730862,1755852642786,-184210.61565073,0.00024499,2]
[380730863,1755852642795,-151.0,0.00024499,7]
[380730864,1755852642805,-151.0,0.00024499,7]
[380730865,1755852642814,-151.053096,0.00024499,7]
[380730866,1755852642824,-151.0,0.00024499,7]
[380730867,1755852642833,-151.0,0.00024499,7]
[380730868,1755852642842,-151.0,0.00024499,7]
[380730869,1755852642852,-151.0,0.00024499,7]
[380730870,1755852642861,-151.0,0.00024499,7]
[380730871,1755852642871,-151.0,0.00024499,7]
[380730872,1755852642880,-176.90508,0.00024499,7]
[380730873,1755852642890,-151.0,0.00024499,7]
[380730874,1755852642899,-151.0,0.00024499,7]
[380730875,1755852642908,-151.0,0.00024499,7]
[380730876,1755852642918,-151.0,0.00024499,7]
[380730877,1755852642927,-151.0,0.00024499,7]
[380730878,1755852642936,-151.0,0.00024499,7]
[380730879,1755852642946,-151.0,0.00024499,7]
[380730880,1755852642955,-155.418846,0.00024499,7]
[380730881,1755852642967,-151.0,0.00024499,7]
[380730882,1755852642976,-233.68964,0.00024499,7]
[380730883,1755852642985,-233.68964,0.00024499,7]
[380730884,1755852642995,-233.68964,0.00024499,7]
[380730885,1755852643005,-233.68964,0.00024499,7]
[380730888,1755852643015,-151.0,0.00024499,7]
[380730890,1755852643024,-151.0,0.00024499,7]
[380730892,1755852643035,-151.0,0.00024499,7]
[380730894,1755852643044,-151.0,0.00024499,7]
[380730896,1755852643054,-265.472366,0.00024499,7]
[380730898,1755852643063,-153.681035,0.00024499,7]
[380730900,1755852643073,-265.472366,0.00024499,7]
[380730902,1755852643082,-487.752808,0.00024499,7]
[380730904,1755852643091,-1000.0,0.00024499,2]
[380730905,1755852643100,-1000.0,0.00024499,2]
[380730907,1755852643110,-1000.0,0.00024499,2]
[380730909,1755852643119,-1000.0,0.00024499,2]
[380730911,1755852643128,-487.752808,0.00024499,7]
[380730913,1755852643137,-1000.0,0.00024499,2]
[380730915,1755852643147,-1000.0,0.00024499,2]
[380730917,1755852643157,-1000.0,0.00024499,2]
[380730919,1755852643166,-1000.0,0.00024499,2]
[380730921,1755852643175,-1000.0,0.00024499,2]
[380730923,1755852643185,-487.752808,0.00024499,7]
[380730925,1755852643194,-1000.0,0.00024499,2]
[380730927,1755852643203,-1000.0,0.00024499,2]
[380730929,1755852643214,-611.502105,0.00024499,7]
[380730931,1755852643224,-1000.0,0.00024499,2]
[380730933,1755852643234,-1000.0,0.00024499,2]
[380730935,1755852643244,-1000.0,0.00024499,2]
[380730937,1755852643254,-487.752808,0.00024499,7]
[380730939,1755852643264,-1000.0,0.00024499,2]
[380730941,1755852643273,-1000.0,0.00024499,2]
[380730943,1755852643282,-611.502105,0.00024499,7]
[380730945,1755852643293,-1000.0,0.00024499,2]
[380730947,1755852643302,-1000.0,0.00024499,2]
[380730949,1755852643312,-1000.0,0.00024499,2]
[380730951,1755852643321,-1000.0,0.00024499,2]
[380730962,1755852643423,-1000.0,0.00024499,2]
[380730964,1755852643433,-611.502105,0.00024499,7]
[380730966,1755852643443,-1000.0,0.00024499,2]
[380730968,1755852643452,-1000.0,0.00024499,2]
[380730970,1755852643463,-1000.0,0.00024499,2]
[380730972,1755852643473,-1000.0,0.00024499,2]
[380730974,1755852643483,-1000.0,0.00024499,2]
[380730976,1755852643493,-611.502105,0.00024499,7]
[380730978,1755852643502,-1000.0,0.00024499,2]
[380730980,1755852643512,-1000.0,0.00024499,2]
[380730982,1755852643521,-1000.0,0.00024499,2]
[380730984,1755852643532,-1000.0,0.00024499,2]
[380730986,1755852643541,-1000.0,0.00024499,2]
[380730988,1755852643550,-1000.0,0.00024499,2]
[380730989,1755852643560,-1000.0,0.00024499,2]
[380730991,1755852643569,-1000.0,0.00024499,2]
[380730993,1755852643578,-1000.0,0.00024499,2]
[380730995,1755852643588,-1000.0,0.00024499,2]
[380730997,1755852643597,-1000.0,0.00024499,2]
[380730999,1755852643606,-1000.0,0.00024499,2]
[380731001,1755852643616,-1000.0,0.00024499,2]
[380731003,1755852643625,-1000.0,0.00024499,2]
[380731005,1755852643635,-1000.0,0.00024499,2]
[380731007,1755852643645,-1000.0,0.00024499,2]
[380731009,1755852643654,-1000.0,0.00024499,2]
[380731011,1755852643664,-1000.0,0.00024499,2]
[380731013,1755852643673,-1000.0,0.00024499,2]
[380731015,1755852643682,-1000.0,0.00024499,2]
[380731017,1755852643692,-1000.0,0.00024499,2]
[380731019,1755852643703,-1000.0,0.00024499,2]
[380731021,1755852643714,-1000.0,0.00024499,2]
[380731023,1755852643724,-151.0,0.00024499,7]
[380731025,1755852643734,-247.520225,0.00024499,2]
[380731027,1755852643743,-151.0,0.00024499,7]
[380731029,1755852643753,-151.0,0.00024499,7]
[380731031,1755852643763,-151.0,0.00024499,7]
[380731033,1755852643772,-151.0,0.00024499,7]
[380731035,1755852643782,-151.0,0.00024499,7]
[380731037,1755852643791,-151.0,0.00024499,7]
[380731039,1755852643801,-151.0,0.00024499,7]
[380731041,1755852643810,-254.863003,0.00024499,7]
[380731043,1755852643819,-254.863003,0.00024499,7]
[380731045,1755852643828,-254.863003,0.00024499,7]
[380731047,1755852643838,-254.863003,0.00024499,7]
[380731049,1755852643847,-254.863003,0.00024499,7]
[380731051,1755852643856,-254.863003,0.00024499,7]
[380731053,1755852643865,-254.863003,0.00024499,7]
[380731055,1755852643874,-254.863009,0.00024499,7]
[380731057,1755852643884,-151.0,0.00024499,7]
[380731059,1755852643894,-151.0,0.00024499,7]
[380731061,1755852643906,-234.778612,0.00024499,7]
[380731063,1755852643916,-151.0,0.00024499,7]
[380731065,1755852643925,-188.160784,0.00024499,7]
[380731067,1755852643935,-188.160784,0.00024499,7]
[380731069,1755852643944,-188.160784,0.00024499,7]
[380731071,1755852643953,-188.160776,0.00024499,7]
[380731073,1755852643963,-151.0,0.00024499,7]
[380731075,1755852643973,-151.0,0.00024499,7]
[380731077,1755852643982,-151.0,0.00024499,7]
[380731079,1755852643991,-164.595216,0.00024499,7]
[380731081,1755852644000,-300.915674,0.00024499,7]
[380731083,1755852644010,-502.95907648,0.00024573,2]
[380731084,1755852644019,-501.74330652,0.00024573,2]
[380731086,1755852644028,-500.0,0.00024573,2]
[380731088,1755852644037,-500.0,0.00024573,2]
[380731090,1755852644047,-500.0,0.00024573,2]
[380731092,1755852644056,-900.0,0.0002458,2]
[380731094,1755852644065,-151.0,0.00024585,7]
[380731096,1755852644075,-151.0,0.00024585,7]
[380731098,1755852644085,-151.0,0.00024585,7]
[380731100,1755852644094,-151.0,0.00024585,7]
[380731102,1755852644103,-151.0,0.00024585,7]
[380731104,1755852644112,-153.601232,0.00024585,7]
[380731106,1755852644122,-151.625864,0.00024585,7]
[380731108,1755852644131,-151.0,0.00024585,7]
[380731111,1755852644140,-151.0,0.00024585,7]
[380731113,1755852644149,-233.68964,0.00024585,7]
[380731115,1755852644159,-233.68964,0.00024585,7]
[380731117,1755852644168,-233.68964,0.00024585,7]
[380731119,1755852644177,-233.68964,0.00024585,7]
[380731121,1755852644187,-151.0,0.00024585,7]
[380731123,1755852644196,-151.0,0.00024585,7]
[380731125,1755852644205,-151.0,0.00024585,7]
[380731127,1755852644215,-151.0,0.00024585,7]
[380731129,1755852644224,-265.472366,0.00024585,7]
[380731131,1755852644234,-265.472366,0.00024585,7]
[380731133,1755852644243,-265.472366,0.00024585,7]
[380731135,1755852644252,-2833.69120908,0.00024598,2]
[380731136,1755852644261,-500.0,0.00024599,2]